[Event "Titled Tuesday Blitz February 28 Early 2023"]
[White "Erigaisi Arjun"]
[Black "Bacrot, Etienne"]
[WhiteFideId "35009192"]
[BlackFideId "605506"]
[WhiteElo "2737"]
[BlackElo "2667"]
[Result "0-1"]
[Round "07"]
[TimeControl "180+2"]
[Date "2023.02.28"]
[WhiteClock "0:00:18"]
[BlackClock "0:00:29"]

1. c4 {[%clk 0:03:00]}  c6 {[%clk 0:02:59]} 2. Nf3 {[%clk 0:02:58]}  d5 {[%clk 0:02:59]} 3. e3 {[%clk 0:02:59]}  Nf6 {[%clk 0:02:59]} 4. Nc3 {[%clk 0:02:59]}  a6 {[%clk 0:02:59]} 5. b3 {[%clk 0:02:58]}  Bf5 {[%clk 0:02:57]} 6. Bb2 {[%clk 0:02:55]}  e6 {[%clk 0:02:58]} 7. Be2 {[%clk 0:02:55]}  h6 {[%clk 0:02:57]} 8. O-O {[%clk 0:02:54]}  Nbd7 {[%clk 0:02:57]} 9. d4 {[%clk 0:02:52]}  Bd6 {[%clk 0:02:57]} 10. Bd3 {[%clk 0:02:47]}  Ne4 {[%clk 0:02:54]} 11. Qc2 {[%clk 0:02:45]}  Ndf6 {[%clk 0:02:49]} 12. Ne5 {[%clk 0:02:41]}  O-O {[%clk 0:02:22]} 13. f3 {[%clk 0:02:39]}  Nxc3 {[%clk 0:02:21]} 14. Bxf5 {[%clk 0:02:40]}  exf5 {[%clk 0:02:10]} 15. Bxc3 {[%clk 0:02:40]}  Qc8 {[%clk 0:02:01]} 16. c5 {[%clk 0:01:53]}  Bc7 {[%clk 0:01:59]} 17. Nd3 {[%clk 0:01:52]}  Qd7 {[%clk 0:01:49]} 18. b4 {[%clk 0:01:40]}  Rae8 {[%clk 0:01:49]} 19. Rae1 {[%clk 0:01:41]}  Re7 {[%clk 0:01:47]} 20. a4 {[%clk 0:01:39]}  Rfe8 {[%clk 0:01:47]} 21. Ne5 {[%clk 0:01:36]}  Qc8 {[%clk 0:01:46]} 22. Qf2 {[%clk 0:01:27]}  Nd7 {[%clk 0:01:39]} 23. Nd3 {[%clk 0:01:27]}  Qb8 {[%clk 0:01:36]} 24. g3 {[%clk 0:01:23]}  Nf8 {[%clk 0:01:21]} 25. Re2 {[%clk 0:01:22]}  g5 {[%clk 0:01:18]} 26. Rb1 {[%clk 0:01:08]}  Ng6 {[%clk 0:01:07]} 27. b5 {[%clk 0:01:07]}  axb5 {[%clk 0:01:06]} 28. axb5 {[%clk 0:01:08]}  Qc8 {[%clk 0:01:06]} 29. Ree1 {[%clk 0:00:51]}  cxb5 {[%clk 0:00:52]} 30. Rxb5 {[%clk 0:00:50]}  f4 {[%clk 0:00:52]} 31. exf4 {[%clk 0:00:39]}  Qf5 {[%clk 0:00:31]} 32. Rxe7 {[%clk 0:00:23]}  Rxe7 {[%clk 0:00:32]} 33. Ne5 {[%clk 0:00:24]}  Bxe5 {[%clk 0:00:31]} 34. dxe5 {[%clk 0:00:19]}  Qd3 {[%clk 0:00:29]} 35. Rb3 {[%clk 0:00:18]}  Qd1+ {[%clk 0:00:29]} 36. Kg2 {[%clk 0:00:17]}  Qxb3 {[%clk 0:00:30]} 37. Qd4 {[%clk 0:00:18]}  Qc4 {[%clk 0:00:29]} 0-1


[Site "https://www.chess.com"]

[Event "Titled Tuesday Blitz February 28 Early 2023"]
[White "So, Wesley"]
[Black "Ahmadzada, Ahmad"]
[WhiteFideId "5202213"]
[BlackFideId "13413007"]
[WhiteElo "2739"]
[BlackElo "2388"]
[Result "1-0"]
[Round "07"]
[TimeControl "180+2"]
[Date "2023.02.28"]
[WhiteClock "0:00:22"]
[BlackClock "0:00:02"]

1. Nf3 {[%clk 0:01:55]}  Nf6 {[%clk 0:02:57]} 2. g3 {[%clk 0:01:55]}  g6 {[%clk 0:02:56]} 3. Bg2 {[%clk 0:01:55]}  Bg7 {[%clk 0:02:56]} 4. O-O {[%clk 0:01:55]}  O-O {[%clk 0:02:57]} 5. b3 {[%clk 0:01:56]}  b6 {[%clk 0:02:55]} 6. Bb2 {[%clk 0:01:53]}  Bb7 {[%clk 0:02:55]} 7. d4 {[%clk 0:01:53]}  c5 {[%clk 0:02:53]} 8. c4 {[%clk 0:01:52]}  cxd4 {[%clk 0:02:51]} 9. Qxd4 {[%clk 0:01:53]}  d6 {[%clk 0:02:47]} 10. Nc3 {[%clk 0:01:53]}  Nbd7 {[%clk 0:02:48]} 11. Rfd1 {[%clk 0:01:53]}  Rc8 {[%clk 0:02:47]} 12. Ne1 {[%clk 0:01:52]}  Ne4 {[%clk 0:02:36]} 13. Qe3 {[%clk 0:01:43]}  Nxc3 {[%clk 0:02:33]} 14. Bxc3 {[%clk 0:01:42]}  Bxg2 {[%clk 0:02:34]} 15. Bxg7 {[%clk 0:01:41]}  Kxg7 {[%clk 0:02:31]} 16. Nxg2 {[%clk 0:01:37]}  Nf6 {[%clk 0:02:31]} 17. Rd2 {[%clk 0:01:32]}  Qd7 {[%clk 0:02:27]} 18. Rad1 {[%clk 0:01:31]}  Rc5 {[%clk 0:02:24]} 19. Nf4 {[%clk 0:01:29]}  Kg8 {[%clk 0:02:15]} 20. Nd3 {[%clk 0:01:24]}  Rh5 {[%clk 0:02:13]} 21. f3 {[%clk 0:01:23]}  Qh3 {[%clk 0:01:41]} 22. Qf2 {[%clk 0:01:21]}  Qc8 {[%clk 0:01:34]} 23. a4 {[%clk 0:01:18]}  Rf5 {[%clk 0:01:13]} 24. Qe3 {[%clk 0:01:15]}  Qc7 {[%clk 0:01:06]} 25. g4 {[%clk 0:01:11]}  Ra5 {[%clk 0:01:05]} 26. Nf4 {[%clk 0:01:01]}  Qc5 {[%clk 0:01:02]} 27. Kf2 {[%clk 0:00:55]}  Qg5 {[%clk 0:00:54]} 28. Ng2 {[%clk 0:00:49]}  Qxe3+ {[%clk 0:00:39]} 29. Nxe3 {[%clk 0:00:50]}  Rc8 {[%clk 0:00:33]} 30. h4 {[%clk 0:00:50]}  h6 {[%clk 0:00:33]} 31. Ra1 {[%clk 0:00:42]}  Rac5 {[%clk 0:00:31]} 32. b4 {[%clk 0:00:39]}  Re5 {[%clk 0:00:28]} 33. Rd3 {[%clk 0:00:32]}  a5 {[%clk 0:00:21]} 34. Rb1 {[%clk 0:00:29]}  axb4 {[%clk 0:00:21]} 35. Rxb4 {[%clk 0:00:30]}  Ra5 {[%clk 0:00:21]} 36. Rxb6 {[%clk 0:00:27]}  Rxa4 {[%clk 0:00:20]} 37. Rb7 {[%clk 0:00:27]}  Kf8 {[%clk 0:00:19]} 38. g5 {[%clk 0:00:27]}  hxg5 {[%clk 0:00:20]} 39. hxg5 {[%clk 0:00:28]}  Ne8 {[%clk 0:00:14]} 40. Rdb3 {[%clk 0:00:25]}  Rc7 {[%clk 0:00:12]} 41. Rb8 {[%clk 0:00:24]}  Rca7 {[%clk 0:00:09]} 42. Rc8 {[%clk 0:00:20]}  Ra8 {[%clk 0:00:08]} 43. Rbb8 {[%clk 0:00:20]}  Rxb8 {[%clk 0:00:09]} 44. Rxb8 {[%clk 0:00:21]}  e6 {[%clk 0:00:08]} 45. Ng4 {[%clk 0:00:21]}  Ke7 {[%clk 0:00:08]} 46. Rb7+ {[%clk 0:00:22]}  Kf8 {[%clk 0:00:08]} 47. Rb8 {[%clk 0:00:22]}  Ke7 {[%clk 0:00:08]} 48. Rb7+ {[%clk 0:00:23]}  Kd8 {[%clk 0:00:04]} 49. Nh6 {[%clk 0:00:22]}  Rxc4 {[%clk 0:00:04]} 50. Nxf7+ {[%clk 0:00:22]}  Kc8 {[%clk 0:00:04]} 51. Re7 {[%clk 0:00:22]}  Ng7 {[%clk 0:00:02]} 1-0


[Site "https://www.chess.com"]

[Event "Titled Tuesday Blitz February 28 Early 2023"]
[White "Vokhidov, Shamsiddin"]
[Black "Andreikin, Dmitry"]
[WhiteFideId "14204223"]
[BlackFideId "4158814"]
[WhiteElo "2570"]
[BlackElo "2736"]
[Result "1-0"]
[Round "07"]
[TimeControl "180+2"]
[Date "2023.02.28"]
[WhiteClock "0:00:56"]
[BlackClock "0:00:02"]

1. e4 {[%clk 0:03:00]}  c5 {[%clk 0:02:59]} 2. Nf3 {[%clk 0:03:01]}  e6 {[%clk 0:02:58]} 3. d4 {[%clk 0:03:02]}  cxd4 {[%clk 0:02:59]} 4. Nxd4 {[%clk 0:03:02]}  Nc6 {[%clk 0:02:59]} 5. Nc3 {[%clk 0:03:02]}  a6 {[%clk 0:02:59]} 6. Be3 {[%clk 0:02:58]}  Nf6 {[%clk 0:02:57]} 7. Qf3 {[%clk 0:02:58]}  Bb4 {[%clk 0:02:44]} 8. Nxc6 {[%clk 0:02:29]}  dxc6 {[%clk 0:02:33]} 9. Bc4 {[%clk 0:02:23]}  e5 {[%clk 0:02:24]} 10. O-O {[%clk 0:02:21]}  O-O {[%clk 0:02:17]} 11. a4 {[%clk 0:02:17]}  Qe7 {[%clk 0:02:06]} 12. a5 {[%clk 0:02:14]}  Bg4 {[%clk 0:02:00]} 13. Qg3 {[%clk 0:02:13]}  Be6 {[%clk 0:02:01]} 14. Bd3 {[%clk 0:02:07]}  Bc5 {[%clk 0:01:14]} 15. Na4 {[%clk 0:02:05]}  Bxe3 {[%clk 0:01:12]} 16. Qxe3 {[%clk 0:02:06]}  Rad8 {[%clk 0:01:10]} 17. Qc5 {[%clk 0:02:05]}  Rfe8 {[%clk 0:01:06]} 18. Qxe5 {[%clk 0:02:00]}  Ng4 {[%clk 0:00:55]} 19. Qg3 {[%clk 0:01:59]}  h5 {[%clk 0:00:55]} 20. h3 {[%clk 0:01:54]}  h4 {[%clk 0:00:53]} 21. Qf4 {[%clk 0:01:54]}  g5 {[%clk 0:00:50]} 22. Qd2 {[%clk 0:01:47]}  Ne5 {[%clk 0:00:50]} 23. f4 {[%clk 0:01:47]}  gxf4 {[%clk 0:00:48]} 24. Rxf4 {[%clk 0:01:47]}  Kg7 {[%clk 0:00:27]} 25. Raf1 {[%clk 0:01:36]}  Rg8 {[%clk 0:00:27]} 26. Qc3 {[%clk 0:01:27]}  Qg5 {[%clk 0:00:26]} 27. Rf5 {[%clk 0:01:25]}  Qe3+ {[%clk 0:00:21]} 28. Kh1 {[%clk 0:01:22]}  Rd4 {[%clk 0:00:08]} 29. Rxe5 {[%clk 0:01:18]}  Bxh3 {[%clk 0:00:09]} 30. Rg5+ {[%clk 0:01:00]}  Qxg5 {[%clk 0:00:07]} 31. Qxd4+ {[%clk 0:00:59]}  Kh6 {[%clk 0:00:02]} 32. Qf6+ {[%clk 0:00:56]} 1-0


[Site "https://www.chess.com"]

[Event "Titled Tuesday Blitz February 28 Early 2023"]
[White "Sadhwani, Raunak"]
[Black "Madaminov, Mukhiddin"]
[WhiteFideId "35093487"]
[BlackFideId "14210703"]
[WhiteElo "2631"]
[BlackElo "2511"]
[Result "1/2-1/2"]
[Round "07"]
[TimeControl "180+2"]
[Date "2023.02.28"]
[WhiteClock "0:00:09"]
[BlackClock "0:00:09"]

1. d4 {[%clk 0:02:56]}  Nf6 {[%clk 0:03:00]} 2. Nf3 {[%clk 0:02:56]}  g6 {[%clk 0:03:00]} 3. Nc3 {[%clk 0:02:55]}  d5 {[%clk 0:02:56]} 4. Bf4 {[%clk 0:02:54]}  Bg7 {[%clk 0:02:55]} 5. Nb5 {[%clk 0:02:54]}  Na6 {[%clk 0:02:55]} 6. e3 {[%clk 0:02:54]}  O-O {[%clk 0:02:52]} 7. Be2 {[%clk 0:02:49]}  Ne4 {[%clk 0:02:49]} 8. O-O {[%clk 0:02:45]}  c6 {[%clk 0:02:49]} 9. Na3 {[%clk 0:02:46]}  Nc7 {[%clk 0:02:45]} 10. c3 {[%clk 0:02:45]}  Bf5 {[%clk 0:02:45]} 11. Nc2 {[%clk 0:02:46]}  Ne6 {[%clk 0:02:38]} 12. Nce1 {[%clk 0:02:40]}  Nxf4 {[%clk 0:02:30]} 13. exf4 {[%clk 0:02:41]}  Qb6 {[%clk 0:02:30]} 14. Nd3 {[%clk 0:02:41]}  a5 {[%clk 0:02:18]} 15. a4 {[%clk 0:02:40]}  Nd6 {[%clk 0:02:16]} 16. Nfe5 {[%clk 0:02:31]}  Nc4 {[%clk 0:02:14]} 17. b3 {[%clk 0:02:24]}  Nxe5 {[%clk 0:02:08]} 18. fxe5 {[%clk 0:02:24]}  Bxd3 {[%clk 0:01:59]} 19. Bxd3 {[%clk 0:02:08]}  c5 {[%clk 0:01:59]} 20. Bb5 {[%clk 0:01:58]}  cxd4 {[%clk 0:01:57]} 21. Qxd4 {[%clk 0:01:47]}  Qc7 {[%clk 0:01:56]} 22. f4 {[%clk 0:01:40]}  e6 {[%clk 0:01:56]} 23. Rf3 {[%clk 0:01:40]}  Rac8 {[%clk 0:01:52]} 24. Re1 {[%clk 0:01:34]}  Rfd8 {[%clk 0:01:51]} 25. Kh1 {[%clk 0:01:32]}  Bf8 {[%clk 0:01:48]} 26. g4 {[%clk 0:01:31]}  Qc5 {[%clk 0:01:21]} 27. f5 {[%clk 0:01:18]}  Qxd4 {[%clk 0:01:17]} 28. cxd4 {[%clk 0:01:19]}  Be7 {[%clk 0:01:17]} 29. Ref1 {[%clk 0:01:14]}  Bg5 {[%clk 0:01:12]} 30. fxe6 {[%clk 0:01:04]}  fxe6 {[%clk 0:01:11]} 31. Rf7 {[%clk 0:01:04]}  Rf8 {[%clk 0:01:06]} 32. Rxb7 {[%clk 0:01:01]}  Rxf1+ {[%clk 0:00:53]} 33. Bxf1 {[%clk 0:01:02]}  Rc1 {[%clk 0:00:38]} 34. Kg2 {[%clk 0:01:01]}  Rd1 {[%clk 0:00:38]} 35. Bb5 {[%clk 0:00:52]}  Rxd4 {[%clk 0:00:36]} 36. Bd7 {[%clk 0:00:49]}  Rxg4+ {[%clk 0:00:32]} 37. Kh3 {[%clk 0:00:46]}  Rh4+ {[%clk 0:00:32]} 38. Kg3 {[%clk 0:00:46]}  Re4 {[%clk 0:00:32]} 39. Bxe6+ {[%clk 0:00:46]}  Kh8 {[%clk 0:00:33]} 40. Bxd5 {[%clk 0:00:38]}  Rxe5 {[%clk 0:00:33]} 41. Bc4 {[%clk 0:00:36]}  Bd2 {[%clk 0:00:25]} 42. Rb5 {[%clk 0:00:22]}  Bc3 {[%clk 0:00:21]} 43. Kf4 {[%clk 0:00:21]}  Re7 {[%clk 0:00:18]} 44. h4 {[%clk 0:00:11]}  Kg7 {[%clk 0:00:19]} 45. h5 {[%clk 0:00:12]}  Bd2+ {[%clk 0:00:19]} 46. Kf3 {[%clk 0:00:10]}  Kh6 {[%clk 0:00:11]} 47. hxg6 {[%clk 0:00:10]}  hxg6 {[%clk 0:00:12]} 48. Rd5 {[%clk 0:00:11]}  Bb4 {[%clk 0:00:11]} 49. Bd3 {[%clk 0:00:11]}  Re6 {[%clk 0:00:10]} 50. Kg4 {[%clk 0:00:11]}  Kg7 {[%clk 0:00:10]} 51. Rd7+ {[%clk 0:00:07]}  Kf6 {[%clk 0:00:10]} 52. Ra7 {[%clk 0:00:07]}  Rd6 {[%clk 0:00:11]} 53. Ra6 {[%clk 0:00:08]}  Rxa6 {[%clk 0:00:08]} 54. Bxa6 {[%clk 0:00:09]}  g5 {[%clk 0:00:09]} 55. Bc4 {[%clk 0:00:09]} 1/2-1/2


[Site "https://www.chess.com"]

[Event "Titled Tuesday Blitz February 28 Early 2023"]
[White "Drygalov, Andrey"]
[Black "Svane, Rasmus"]
[WhiteFideId "24171735"]
[BlackFideId "4657101"]
[WhiteElo "2471"]
[BlackElo "2597"]
[Result "1-0"]
[Round "07"]
[TimeControl "180+2"]
[Date "2023.02.28"]
[WhiteClock "0:00:11"]
[BlackClock "0:00:02"]

1. e4 {[%clk 0:02:59]}  c6 {[%clk 0:02:59]} 2. d4 {[%clk 0:02:57]}  d5 {[%clk 0:03:00]} 3. e5 {[%clk 0:02:58]}  Bf5 {[%clk 0:03:00]} 4. Nf3 {[%clk 0:02:58]}  e6 {[%clk 0:03:00]} 5. Be2 {[%clk 0:02:58]}  Ne7 {[%clk 0:03:01]} 6. O-O {[%clk 0:02:58]}  Ng6 {[%clk 0:03:01]} 7. c3 {[%clk 0:02:57]}  Nd7 {[%clk 0:03:01]} 8. a3 {[%clk 0:02:55]}  f6 {[%clk 0:03:00]} 9. exf6 {[%clk 0:02:54]}  Qxf6 {[%clk 0:03:01]} 10. Bg5 {[%clk 0:02:22]}  Qf7 {[%clk 0:03:00]} 11. Be3 {[%clk 0:02:22]}  Bd6 {[%clk 0:02:59]} 12. Nbd2 {[%clk 0:02:22]}  O-O {[%clk 0:02:58]} 13. g3 {[%clk 0:02:16]}  Nf6 {[%clk 0:02:50]} 14. Ng5 {[%clk 0:02:11]}  Qc7 {[%clk 0:02:44]} 15. Bh5 {[%clk 0:01:43]}  Rae8 {[%clk 0:02:15]} 16. f4 {[%clk 0:01:38]}  h6 {[%clk 0:02:11]} 17. Bxg6 {[%clk 0:01:38]}  Bxg6 {[%clk 0:02:12]} 18. Ngf3 {[%clk 0:01:38]}  c5 {[%clk 0:02:00]} 19. dxc5 {[%clk 0:01:31]}  Bxc5 {[%clk 0:02:01]} 20. Bxc5 {[%clk 0:01:31]}  Qxc5+ {[%clk 0:02:02]} 21. Nd4 {[%clk 0:01:32]}  e5 {[%clk 0:02:00]} 22. fxe5 {[%clk 0:01:32]}  Rxe5 {[%clk 0:02:00]} 23. Nf3 {[%clk 0:01:24]}  Re4 {[%clk 0:01:57]} 24. Qb3 {[%clk 0:01:22]}  Rf7 {[%clk 0:01:50]} 25. Nh4 {[%clk 0:01:17]}  Bh5 {[%clk 0:01:45]} 26. Nf5 {[%clk 0:01:03]}  Bg4 {[%clk 0:01:42]} 27. Qb4 {[%clk 0:00:52]}  Rc7 {[%clk 0:01:13]} 28. Qxc5 {[%clk 0:00:47]}  Rxc5 {[%clk 0:01:14]} 29. Nxh6+ {[%clk 0:00:47]}  Kh7 {[%clk 0:01:10]} 30. Nxg4 {[%clk 0:00:47]}  Rxg4 {[%clk 0:01:10]} 31. Rae1 {[%clk 0:00:45]}  Rc7 {[%clk 0:01:02]} 32. Re5 {[%clk 0:00:45]}  a6 {[%clk 0:01:00]} 33. Kg2 {[%clk 0:00:45]}  Re4 {[%clk 0:01:00]} 34. Re1 {[%clk 0:00:42]}  b5 {[%clk 0:01:00]} 35. R1xe4 {[%clk 0:00:40]}  Nxe4 {[%clk 0:01:01]} 36. Rxd5 {[%clk 0:00:39]}  Nd2 {[%clk 0:01:02]} 37. Ne6 {[%clk 0:00:36]}  Re7 {[%clk 0:01:00]} 38. Rxd2 {[%clk 0:00:32]}  Rxe6 {[%clk 0:01:00]} 39. Kf3 {[%clk 0:00:33]}  Kh6 {[%clk 0:00:58]} 40. Rc2 {[%clk 0:00:33]}  Kg5 {[%clk 0:00:56]} 41. b3 {[%clk 0:00:33]}  Kf5 {[%clk 0:00:50]} 42. c4 {[%clk 0:00:34]}  bxc4 {[%clk 0:00:48]} 43. bxc4 {[%clk 0:00:34]}  Rc6 {[%clk 0:00:47]} 44. c5 {[%clk 0:00:35]}  Ke5 {[%clk 0:00:41]} 45. Kg4 {[%clk 0:00:34]}  Kd4 {[%clk 0:00:42]} 46. Kg5 {[%clk 0:00:30]}  Kd3 {[%clk 0:00:42]} 47. Rc1 {[%clk 0:00:25]}  Kd2 {[%clk 0:00:41]} 48. Rc4 {[%clk 0:00:25]}  Kd3 {[%clk 0:00:41]} 49. Ra4 {[%clk 0:00:25]}  Kc3 {[%clk 0:00:27]} 50. Ra5 {[%clk 0:00:24]}  Kc4 {[%clk 0:00:25]} 51. h4 {[%clk 0:00:24]}  Kd5 {[%clk 0:00:24]} 52. g4 {[%clk 0:00:24]}  g6 {[%clk 0:00:15]} 53. h5 {[%clk 0:00:23]}  gxh5 {[%clk 0:00:16]} 54. gxh5 {[%clk 0:00:23]}  Ke6 {[%clk 0:00:17]} 55. Kg6 {[%clk 0:00:23]}  Ke5+ {[%clk 0:00:17]} 56. Kg7 {[%clk 0:00:22]}  Rc7+ {[%clk 0:00:16]} 57. Kg6 {[%clk 0:00:22]}  Rc6+ {[%clk 0:00:17]} 58. Kg5 {[%clk 0:00:21]}  Ke6 {[%clk 0:00:17]} 59. h6 {[%clk 0:00:18]}  Kf7 {[%clk 0:00:18]} 60. h7 {[%clk 0:00:18]}  Kg7 {[%clk 0:00:18]} 61. Kf5 {[%clk 0:00:18]}  Kxh7 {[%clk 0:00:15]} 62. Ke5 {[%clk 0:00:19]}  Kg7 {[%clk 0:00:16]} 63. Kd5 {[%clk 0:00:19]}  Rh6 {[%clk 0:00:15]} 64. Ra4 {[%clk 0:00:17]}  Kf7 {[%clk 0:00:16]} 65. Re4 {[%clk 0:00:18]}  Rh3 {[%clk 0:00:09]} 66. a4 {[%clk 0:00:18]}  Rd3+ {[%clk 0:00:08]} 67. Kc6 {[%clk 0:00:18]}  Rb3 {[%clk 0:00:08]} 68. Kc7 {[%clk 0:00:18]}  a5 {[%clk 0:00:09]} 69. c6 {[%clk 0:00:18]}  Rb4 {[%clk 0:00:09]} 70. Re5 {[%clk 0:00:09]}  Rxa4 {[%clk 0:00:10]} 71. Kc8 {[%clk 0:00:09]}  Rc4 {[%clk 0:00:07]} 72. c7 {[%clk 0:00:08]}  a4 {[%clk 0:00:07]} 73. Kd7 {[%clk 0:00:09]}  Kf6 {[%clk 0:00:02]} 74. Rd5 {[%clk 0:00:09]}  a3 {[%clk 0:00:01]} 75. c8=Q {[%clk 0:00:09]}  Rxc8 {[%clk 0:00:01]} 76. Kxc8 {[%clk 0:00:10]}  a2 {[%clk 0:00:02]} 77. Ra5 {[%clk 0:00:11]}  a1=Q {[%clk 0:00:02]} 78. Rxa1 {[%clk 0:00:11]} 1-0


[Site "https://www.chess.com"]

[Event "Titled Tuesday Blitz February 28 Early 2023"]
[White "Darini, Pouria"]
[Black "Mitrabha, Guha"]
[WhiteFideId "12502200"]
[BlackFideId "5057000"]
[WhiteElo "2482"]
[BlackElo "2520"]
[Result "1-0"]
[Round "07"]
[TimeControl "180+2"]
[Date "2023.02.28"]
[WhiteClock "0:00:02"]
[BlackClock "0:00:17"]

1. e4 {[%clk 0:03:00]}  c6 {[%clk 0:02:57]} 2. Nf3 {[%clk 0:03:00]}  d5 {[%clk 0:02:58]} 3. d3 {[%clk 0:03:00]}  Qc7 {[%clk 0:02:50]} 4. Nc3 {[%clk 0:02:57]}  dxe4 {[%clk 0:02:49]} 5. Nxe4 {[%clk 0:02:57]}  Nf6 {[%clk 0:02:48]} 6. Qe2 {[%clk 0:02:53]}  Bg4 {[%clk 0:02:47]} 7. h3 {[%clk 0:02:48]}  Bh5 {[%clk 0:02:47]} 8. Nxf6+ {[%clk 0:02:41]}  gxf6 {[%clk 0:02:47]} 9. g3 {[%clk 0:02:30]}  Nd7 {[%clk 0:02:42]} 10. Bg2 {[%clk 0:02:30]}  e6 {[%clk 0:02:43]} 11. Bf4 {[%clk 0:02:24]}  Bd6 {[%clk 0:02:41]} 12. Bxd6 {[%clk 0:02:24]}  Qxd6 {[%clk 0:02:42]} 13. O-O-O {[%clk 0:02:22]}  O-O-O {[%clk 0:02:42]} 14. Qe3 {[%clk 0:02:21]}  Kb8 {[%clk 0:02:40]} 15. Rhe1 {[%clk 0:02:21]}  Rhg8 {[%clk 0:02:40]} 16. Kb1 {[%clk 0:02:13]}  f5 {[%clk 0:02:40]} 17. Qh6 {[%clk 0:02:03]}  Bg6 {[%clk 0:02:35]} 18. h4 {[%clk 0:01:48]}  f4 {[%clk 0:01:51]} 19. g4 {[%clk 0:01:44]}  f6 {[%clk 0:01:49]} 20. h5 {[%clk 0:01:35]}  Bf7 {[%clk 0:01:45]} 21. Qxh7 {[%clk 0:01:35]}  Qf8 {[%clk 0:01:45]} 22. Qe4 {[%clk 0:00:49]}  e5 {[%clk 0:01:41]} 23. Bh3 {[%clk 0:00:33]}  Be6 {[%clk 0:01:29]} 24. d4 {[%clk 0:00:20]}  Bd5 {[%clk 0:01:23]} 25. Qe2 {[%clk 0:00:20]}  Qf7 {[%clk 0:00:35]} 26. dxe5 {[%clk 0:00:19]}  Rge8 {[%clk 0:00:34]} 27. e6 {[%clk 0:00:11]}  Rxe6 {[%clk 0:00:33]} 28. Qd2 {[%clk 0:00:02]}  Ne5 {[%clk 0:00:14]} 29. Qxf4 {[%clk 0:00:02]}  Qc7 {[%clk 0:00:14]} 30. Nxe5 {[%clk 0:00:03]}  fxe5 {[%clk 0:00:15]} 31. Qe3 {[%clk 0:00:02]}  Red6 {[%clk 0:00:15]} 32. Kc1 {[%clk 0:00:03]}  Qa5 {[%clk 0:00:15]} 33. a3 {[%clk 0:00:02]}  Qa4 {[%clk 0:00:15]} 34. Qxe5 {[%clk 0:00:03]}  Ka8 {[%clk 0:00:15]} 35. Qc3 {[%clk 0:00:03]}  Qf4+ {[%clk 0:00:15]} 36. Qe3 {[%clk 0:00:04]}  Qc4 {[%clk 0:00:15]} 37. Bf1 {[%clk 0:00:04]}  Qa2 {[%clk 0:00:16]} 38. Rd3 {[%clk 0:00:04]}  Qa1+ {[%clk 0:00:16]} 39. Kd2 {[%clk 0:00:04]}  Qxb2 {[%clk 0:00:16]} 40. Qd4 {[%clk 0:00:05]}  Qa2 {[%clk 0:00:14]} 41. Ra1 {[%clk 0:00:04]}  c5 {[%clk 0:00:13]} 42. Rxa2 {[%clk 0:00:04]}  cxd4 {[%clk 0:00:13]} 43. Rb2 {[%clk 0:00:05]}  Bc4 {[%clk 0:00:14]} 44. Rb4 {[%clk 0:00:04]}  Bxd3 {[%clk 0:00:14]} 45. Bxd3 {[%clk 0:00:05]}  Rf8 {[%clk 0:00:15]} 46. Bf5 {[%clk 0:00:05]}  b6 {[%clk 0:00:14]} 47. Kd3 {[%clk 0:00:05]}  Kb7 {[%clk 0:00:15]} 48. Rxd4 {[%clk 0:00:05]}  Kc6 {[%clk 0:00:16]} 49. Rxd6+ {[%clk 0:00:05]}  Kxd6 {[%clk 0:00:17]} 50. f4 {[%clk 0:00:06]}  Re8 {[%clk 0:00:17]} 51. h6 {[%clk 0:00:06]}  Re1 {[%clk 0:00:17]} 52. h7 {[%clk 0:00:06]}  Rh1 {[%clk 0:00:18]} 53. g5 {[%clk 0:00:05]}  Ke7 {[%clk 0:00:19]} 54. Be4 {[%clk 0:00:05]}  Rh3+ {[%clk 0:00:18]} 55. Kd4 {[%clk 0:00:06]}  Kf7 {[%clk 0:00:19]} 56. Ke5 {[%clk 0:00:06]}  Rh5 {[%clk 0:00:18]} 57. c4 {[%clk 0:00:05]}  Kg7 {[%clk 0:00:18]} 58. a4 {[%clk 0:00:03]}  Kf7 {[%clk 0:00:18]} 59. Kf5 {[%clk 0:00:03]}  Kg7 {[%clk 0:00:17]} 60. Kg4 {[%clk 0:00:03]}  Rh1 {[%clk 0:00:17]} 61. Bxh1 {[%clk 0:00:02]} 1-0


[Site "https://www.chess.com"]

[Event "Titled Tuesday Blitz February 28 Early 2023"]
[White "Sasikiran, Krishnan"]
[Black "Fedoseev, Vladimir"]
[WhiteFideId "5004985"]
[BlackFideId "24130737"]
[WhiteElo "2567"]
[BlackElo "2752"]
[Result "0-1"]
[Round "07"]
[TimeControl "180+2"]
[Date "2023.02.28"]
[WhiteClock "0:01:18"]
[BlackClock "0:01:32"]

1. d4 {[%clk 0:03:00]}  Nf6 {[%clk 0:02:35]} 2. c4 {[%clk 0:03:01]}  e6 {[%clk 0:02:36]} 3. Nc3 {[%clk 0:03:01]}  Bb4 {[%clk 0:02:35]} 4. f3 {[%clk 0:03:01]}  d5 {[%clk 0:02:31]} 5. a3 {[%clk 0:03:02]}  Bxc3+ {[%clk 0:02:31]} 6. bxc3 {[%clk 0:03:02]}  c6 {[%clk 0:02:32]} 7. a4 {[%clk 0:02:53]}  O-O {[%clk 0:02:28]} 8. Nh3 {[%clk 0:02:53]}  Re8 {[%clk 0:02:25]} 9. Nf2 {[%clk 0:02:46]}  e5 {[%clk 0:02:17]} 10. e3 {[%clk 0:02:45]}  b6 {[%clk 0:02:13]} 11. Be2 {[%clk 0:02:37]}  Ba6 {[%clk 0:02:12]} 12. O-O {[%clk 0:02:30]}  Nbd7 {[%clk 0:02:05]} 13. cxd5 {[%clk 0:02:23]}  Bxe2 {[%clk 0:02:04]} 14. Qxe2 {[%clk 0:02:24]}  cxd5 {[%clk 0:02:05]} 15. a5 {[%clk 0:02:24]}  Rc8 {[%clk 0:02:04]} 16. Bd2 {[%clk 0:02:20]}  bxa5 {[%clk 0:01:48]} 17. Qa6 {[%clk 0:02:16]}  Rc7 {[%clk 0:01:46]} 18. Rxa5 {[%clk 0:02:03]}  Nb6 {[%clk 0:01:46]} 19. dxe5 {[%clk 0:01:30]}  Rxe5 {[%clk 0:01:38]} 20. e4 {[%clk 0:01:30]}  Re6 {[%clk 0:01:38]} 21. e5 {[%clk 0:01:20]}  Nc4 {[%clk 0:01:35]} 22. exf6 {[%clk 0:01:17]}  Rxa6 {[%clk 0:01:32]} 23. Rxa6 {[%clk 0:01:18]}  Nxd2 {[%clk 0:01:32]} 0-1


[Site "https://www.chess.com"]

[Event "Titled Tuesday Blitz February 28 Early 2023"]
[White "Deac, Bogdan-Daniel"]
[Black "Acor, Corey"]
[WhiteFideId "1226380"]
[BlackFideId "2024861"]
[WhiteElo "2649"]
[BlackElo "2341"]
[Result "1-0"]
[Round "07"]
[TimeControl "180+2"]
[Date "2023.02.28"]
[WhiteClock "0:00:03"]
[BlackClock "0:00:18"]

1. b3 {[%clk 0:02:56]}  e5 {[%clk 0:02:58]} 2. Bb2 {[%clk 0:02:53]}  Nc6 {[%clk 0:02:58]} 3. Nf3 {[%clk 0:02:51]}  e4 {[%clk 0:02:56]} 4. Nd4 {[%clk 0:02:51]}  Nxd4 {[%clk 0:02:56]} 5. Bxd4 {[%clk 0:02:52]}  c5 {[%clk 0:02:56]} 6. Bb2 {[%clk 0:02:51]}  d5 {[%clk 0:02:56]} 7. e3 {[%clk 0:02:52]}  Nf6 {[%clk 0:02:55]} 8. Bb5+ {[%clk 0:02:51]}  Bd7 {[%clk 0:02:49]} 9. Bxf6 {[%clk 0:02:27]}  Qxf6 {[%clk 0:02:42]} 10. Bxd7+ {[%clk 0:02:26]}  Kxd7 {[%clk 0:02:43]} 11. Nc3 {[%clk 0:02:26]}  Qe5 {[%clk 0:02:29]} 12. Qe2 {[%clk 0:02:07]}  a6 {[%clk 0:02:27]} 13. O-O-O {[%clk 0:01:55]}  Kc7 {[%clk 0:02:17]} 14. f4 {[%clk 0:01:34]}  Qe6 {[%clk 0:02:03]} 15. d3 {[%clk 0:01:33]}  f5 {[%clk 0:01:32]} 16. dxe4 {[%clk 0:01:31]}  dxe4 {[%clk 0:01:33]} 17. Rd5 {[%clk 0:01:20]}  Bd6 {[%clk 0:01:29]} 18. Rhd1 {[%clk 0:01:02]}  Rhd8 {[%clk 0:01:27]} 19. Qc4 {[%clk 0:01:00]}  Qf6 {[%clk 0:01:05]} 20. Rxc5+ {[%clk 0:00:21]}  Kb8 {[%clk 0:01:05]} 21. Rxd6 {[%clk 0:00:05]}  Qxd6 {[%clk 0:00:54]} 22. Rxf5 {[%clk 0:00:05]}  Qd2+ {[%clk 0:00:50]} 23. Kb2 {[%clk 0:00:05]}  Qxe3 {[%clk 0:00:49]} 24. Rf7 {[%clk 0:00:04]}  Ka7 {[%clk 0:00:40]} 25. Nd5 {[%clk 0:00:02]}  Qf2 {[%clk 0:00:33]} 26. Rxb7+ {[%clk 0:00:02]}  Kxb7 {[%clk 0:00:18]} 27. Qc7# {[%clk 0:00:03]} 1-0


[Site "https://www.chess.com"]